[Event "45th FIDE Womens Olympiad 2024"]
[Site "Budapest"]
[Date "2024.09.12"]
[Round "2.63"]
[White "Jacimovic, Sara"]
[Black "Aydin, Gulenay"]
[Result "0-1"]
[ECO "B24"]
[WhiteElo "1981"]
[BlackElo "2202"]
[Annotator "ChessBase"]
[PlyCount "74"]
[EventDate "2024.09.05"]
[EventType "team-tourn"]
[EventCountry "HUN"]
[SourceTitle "playchess.com"]
[Source "ChessBase"]
[SourceQuality "1"]
[WhiteTeam "Bosnia & Herzegovina"]
[BlackTeam "Turkiye"]
[WhiteTeamCountry "BIH"]
[BlackTeamCountry "TUR"]
[TimeControl "40/5400+30:1800+30"]

1. e4 c5 2. Nc3 e6 3. g3 Nc6 4. Bg2 g6 5. Nge2 Bg7 6. d3 Nge7 7. Bg5 h6 8. Be3 Nd4 9. Qd2 d6 10. O-O Rb8 11. f4 b5 12. Nd1 Nxe2+ 13. Qxe2 O-O 14. c3 a5 15. Nf2 Bb7 16. Rfd1 b4 17. Rac1 Ba6 18. e5 bxc3 19. bxc3 Nf5 20. exd6 Nxe3 21. Qxe3 Rc8 22. Ne4 Bb7 23. d7 Qxd7 24. Nxc5 Rxc5 25. Qxc5 Bxg2 26. Kxg2 Rc8 27. Qa3 Qd5+ 28. Kh3 Qh5+ 29. Kg2 Qe2+ 30. Kh3 Bf8 31. Qxa5 Rc5 32. Qxc5 Bxc5 33. a4 g5 34. fxg5 hxg5 35. Re1 g4+ 36. Kh4 Be7+ 37. Kh5 Qxd3 0-1

[Event "45th FIDE Womens Olympiad 2024"]
[Site "Budapest"]
[Date "2024.09.12"]
[Round "2.64"]
[White "Isgenderova, Hayale"]
[Black "Mahmutbegovic Smajilbasic, Nadina"]
[Result "1-0"]
[ECO "C55"]
[WhiteElo "2124"]
[BlackElo "1973"]
[Annotator "NA"]
[PlyCount "71"]
[EventDate "2024.09.05"]
[EventType "team-tourn"]
[EventCountry "HUN"]
[SourceTitle "playchess.com"]
[Source "ChessBase"]
[SourceQuality "1"]
[WhiteTeam "Turkiye"]
[BlackTeam "Bosnia & Herzegovina"]
[WhiteTeamCountry "TUR"]
[BlackTeamCountry "BIH"]
[TimeControl "40/5400+30:1800+30"]

1. e4 e5 2. Nf3 Nc6 3. Bc4 Nf6 4. d3 h6 5. c3 g5 6. d4 exd4 7. e5 d5 8. Bb5 Ne4 9. Nxd4 Bd7 10. e6 fxe6 11. Qh5+ Ke7 12. Bxc6 bxc6 13. f3 Nf6 14. Bxg5 Bg7 15. Bh4 c5 16. Ne2 Be8 17. Qe5 Qd6 18. Qe3 Kf7 19. Bg3 Qb6 20. Nf4 Qxb2 21. Qxe6+ Kf8 22. O-O Qxa1 23. Nxd5 Nxd5 24. Qxd5 Bd4+ 25. Kh1 Rb8 26. Qf5+ Bf7 27. cxd4 Qxd4 28. Be5 Qd5 29. Qf6 Rh7 30. Bxc7 Rc8 31. Bd6+ Kg8 32. Nc3 Qe6 33. Ne4 Rg7 34. Be5 Qxf6 35. Nxf6+ Kf8 36. Bd6# 1-0

[Event "45th FIDE Womens Olympiad 2024"]
[Site "Budapest"]
[Date "2024.09.12"]
[Round "2.65"]
[White "Roebers, Eline"]
[Black "Stojkovska, Monika"]
[Result "1-0"]
[ECO "C13"]
[WhiteElo "2340"]
[BlackElo "2043"]
[Annotator "TA"]
[PlyCount "109"]
[EventDate "2024.09.05"]
[EventType "team-tourn"]
[EventCountry "HUN"]
[SourceTitle "playchess.com"]
[Source "ChessBase"]
[SourceQuality "1"]
[WhiteTeam "Netherlands"]
[BlackTeam "North Macedonia"]
[WhiteTeamCountry "NED"]
[BlackTeamCountry "MKD"]
[TimeControl "40/5400+30:1800+30"]

{[%evp 18,109,26,23,10,27,38,8,12,0,118,108,129,73,87,27,39,45,28,42,27,41,40,0,0,0,71,-22,-18,-20,0,-10,0,0,10,49,27,0,0,12,46,40,55,64,196,190,290,285,295,272,337,338,329,343,312,288,281,261,317,318,302,299,280,299,328,328,335,303,485,495,488,445,496,497,489,492,555,546,628,626,755,754,750,725,1174,737,711,752,749,746,759,710,747,644]} 1. e4 e6 2. d4 d5 3. Nc3 Nf6 4. Bg5 dxe4 5. Nxe4 Be7 6. Bxf6 gxf6 7. Nc3 {C13: French: Classical System: 4 Bg5 Be7, Alekhine-Chatard Attack.} a6 8. g3 b5 9. Bg2 Ra7 10. Qd3 c5 $146 ({Predecessor:} 10... Bb7 11. Bxb7 Rxb7 12. O-O-O c6 13. Nf3 Nd7 14. Kb1 Qa5 15. Nd2 Qc7 16. Rhe1 h5 {½-½ Xiong,J (2709)-Niemann,H (2465) Chess24 Banter Blitz Cup Qual-B 2020 (1.3)}) 11. d5 Rd7 12. Nh3 b4 13. Nd1 Bb7 (13... exd5 $11 {remains equal.} 14. Ne3 d4) 14. Ne3 $16 exd5 15. Nf5 (15. O-O-O $142) 15... Nc6 $16 16. Nf4 (16. Qe2 $16) 16... Ne5 $11 17. Qe2 Qa8 18. O-O-O d4 19. Bxb7 Qxb7 20. Nh5 Kd8 21. f4 Ng6 (21... d3 $1 $11 {keeps the balance.} 22. cxd3 Nxd3+ 23. Qxd3 (23. Kb1 c4 $17) 23... Rxd3 24. Rxd3+ Kc7) 22. g4 (22. Rhe1 $16) 22... Kc7 23. Rhe1 Qb5 24. Qe4 Qc6 25. Nxe7 Qxe4 26. Rxe4 Rxe7 27. Rde1 Rxe4 28. Rxe4 Kd6 (28... f5 $5 29. gxf5 Nh4 $11) 29. Nxf6 h6 30. Kd2 Ne7 (30... Nh4 $14) 31. Re5 $18 Ng6 (31... c4 {was called for.} 32. Ne4+ Kd7) 32. Ne4+ $18 Kd7 33. Nxc5+ Kd6 34. Ne4+ Kd7 35. Rf5 Ke7 36. Kd3 Rc8 37. Nd2 (37. Kxd4 Rxc2 38. Rc5 Rxb2 $14) 37... Nf8 38. Nc4 (38. Kxd4 Rxc2 39. Kd3 Rxb2 $11) 38... Ne6 39. Nb6 Rb8 40. Nd5+ Kd6 41. Nf6 Ke7 42. Ne4 f6 $2 (42... Re8 {keeps fighting.} 43. Nc5 Nxc5+ 44. Rxc5 Kf6 45. Rf5+ (45. Kxd4 Re2 $18) 45... Kg7) 43. Nxf6 $18 Ng7 44. Nd5+ Kd6 45. Re5 Ne6 46. Ke4 b3 47. cxb3 d3 48. Ne3 Rb4+ 49. Nc4+ Kd7 50. Rd5+ Kc6 51. Rd6+ Kc7 52. Ke5 (52. Rxe6 d2 53. Re7+ (53. Rxh6 $2 d1=Q $19) 53... Kc8 54. Re8+ (54. Rd7 $2 Kxd7 55. a3 Rxc4+ 56. bxc4 d1=Q $19) 54... Kc7 (54... Kd7 $2 55. Re5 $18) 55. Re7+ Kc6 56. Re6+ Kc7 57. Re7+ $11 (57. Rxh6 $2 d1=Q $19)) 52... Nc5 53. f5 (53. Rxh6 $2 {perishes.} Rxc4 54. bxc4 Nd7+ 55. Kf5 (55. Kd5 $2 d2 $19) 55... d2 $19) 53... Rb8 54. Rxh6 Re8+ 55. Kd4 1-0

[Event "45th FIDE Womens Olympiad 2024"]
[Site "Budapest"]
[Date "2024.09.12"]
[Round "2.66"]
[White "Manova, Ivana"]
[Black "Peng, Zhaoqin"]
[Result "1/2-1/2"]
[ECO "C10"]
[WhiteElo "2031"]
[BlackElo "2349"]
[Annotator "TA"]
[PlyCount "90"]
[EventDate "2024.09.05"]
[EventType "team-tourn"]
[EventCountry "HUN"]
[SourceTitle "playchess.com"]
[Source "ChessBase"]
[SourceQuality "1"]
[WhiteTeam "North Macedonia"]
[BlackTeam "Netherlands"]
[WhiteTeamCountry "MKD"]
[BlackTeamCountry "NED"]
[TimeControl "40/5400+30:1800+30"]

{[%evp 15,90,18,12,8,11,0,1,0,14,0,15,22,23,21,31,18,26,0,-2,-21,-25,-28,-22,-19,-9,-10,0,-18,-25,-23,-20,-25,-20,-22,-22,-27,-28,-22,-20,-75,-31,-77,-77,-77,-77,-77,-77,-78,-78,-78,-78,-78,-78,-77,-77,-78,-62,-79,-64,-66,-66,-66,-49,-66,-49,-60,-46,-46,-24,-66,-46,-64,-30,-39,0,-72,0]} 1. e4 e6 2. d4 d5 3. Nc3 dxe4 4. Nxe4 Nd7 5. Nf3 Ngf6 6. Bg5 h6 7. Nxf6+ Nxf6 8. Bxf6 Qxf6 9. g3 Bd6 10. Bg2 O-O 11. O-O {The position is equal.} Rd8 12. Qe2 Rb8 13. Rad1 Bd7 14. Ne5 Be8 15. Ng4 Qe7 16. Rd2 c5 17. dxc5 Bxc5 18. Rfd1 b6 19. c3 a5 20. Ne5 Qc7 21. a3 Rxd2 22. Rxd2 b5 23. Nd3 Bd6 24. Qd1 Kf8 25. Ne1 Be7 26. Nc2 g6 27. Nd4 (27. Qe1 $11) 27... Kg7 28. Qf3 (28. Qe1 $15) 28... b4 $17 29. cxb4 axb4 30. axb4 Qc1+ 31. Qd1 Qxd1+ 32. Rxd1 Rxb4 {[%cal Oe7c5]} ({But not} 32... Bxb4 33. Bc6 $11) 33. Nc6 Bxc6 34. Bxc6 Rxb2 {[%mdl 4096] Endgame. KRB-KRB} 35. Rc1 {Wards off Bc5} f5 36. Ba4 Rb4 37. Bd7 e5 38. Rc7 Bd8 39. Rc2 Bb6 40. Kg2 Rd4 41. Be8 g5 42. Rb2 Rd6 43. Rc2 Rd8 44. Bh5 Rd6 45. Be8 $1 Rd8 {Weighted Error Value: White=0.09 (flawless) /Black=0.09 (flawless) .  Mistake:       	White=2     	Black=1      Inaccurate:     	White=2     	Black=2      OK:         	White=13    	Black=14     Best:        	White=1     	---        Strong:       	White=1     	---} ({Better is} 45... e4 $17) 1/2-1/2

[Event "45th FIDE Womens Olympiad 2024"]
[Site "Budapest"]
[Date "2024.09.12"]
[Round "2.67"]
[White "Van Foreest, Machteld"]
[Black "Zhezhovska, Monika"]
[Result "1-0"]
[ECO "B89"]
[WhiteElo "2224"]
[BlackElo "2106"]
[Annotator "ChessBase"]
[PlyCount "61"]
[EventDate "2024.09.05"]
[EventType "team-tourn"]
[EventCountry "HUN"]
[SourceTitle "playchess.com"]
[Source "ChessBase"]
[SourceQuality "1"]
[WhiteTeam "Netherlands"]
[BlackTeam "North Macedonia"]
[WhiteTeamCountry "NED"]
[BlackTeamCountry "MKD"]
[TimeControl "40/5400+30:1800+30"]

1. e4 c5 2. Nf3 Nc6 3. d4 cxd4 4. Nxd4 Nf6 5. Nc3 d6 6. Bc4 e6 7. Be3 Bd7 8. Qe2 a6 9. a4 Na5 10. Ba2 Qc7 11. O-O Be7 12. f4 Rc8 13. Rad1 O-O 14. Bc1 Nc4 15. Kh1 Qc5 16. e5 dxe5 17. fxe5 Nd5 18. Nxd5 exd5 19. c3 Be6 20. Bb1 Qc7 21. Rde1 Bc5 22. Bg5 Be7 23. Bc1 Qd7 24. Qd3 g6 25. Qg3 Qd8 26. Nxe6 fxe6 27. Qg4 Rc6 28. Bxg6 hxg6 29. Qxg6+ Kh8 30. Qh5+ Kg8 31. Bh6 1-0

[Event "45th FIDE Womens Olympiad 2024"]
[Site "Budapest"]
[Date "2024.09.12"]
[Round "2.68"]
[White "Trajkovska, Sanja"]
[Black "Kazarian, Anna-Maja"]
[Result "0-1"]
[ECO "C01"]
[WhiteElo "1921"]
[BlackElo "2180"]
[Annotator "ChessBase"]
[PlyCount "86"]
[EventDate "2024.09.05"]
[EventType "team-tourn"]
[EventCountry "HUN"]
[SourceTitle "playchess.com"]
[Source "ChessBase"]
[SourceQuality "1"]
[WhiteTeam "North Macedonia"]
[BlackTeam "Netherlands"]
[WhiteTeamCountry "MKD"]
[BlackTeamCountry "NED"]
[TimeControl "40/5400+30:1800+30"]

1. e4 e6 2. d4 d5 3. exd5 exd5 4. Bf4 Bd6 5. Qd2 Bf5 6. Bxd6 Qxd6 7. Nc3 c6 8. O-O-O Ne7 9. f3 Nd7 10. Nge2 b5 11. Qf4 Qg6 12. Rd2 b4 13. Nd1 h5 14. Nf2 a5 15. g4 hxg4 16. fxg4 Be6 17. Qg3 Qh6 18. h4 g6 19. Nf4 a4 20. Nxe6 fxe6 21. g5 Nf5 22. Qc7 Qg7 23. Qxc6 Ke7 24. Bb5 Ra7 25. Re1 a3 26. Qxe6+ Kd8 27. Qxd5 Rxh4 28. Ne4 Qe7 29. Qg8+ Kc7 30. Qc4+ Kb8 31. Rde2 Rc7 32. Qg8+ Rc8 33. Qd5 Nb6 34. Qe5+ Qxe5 35. dxe5 Nd4 36. Nd6 Nxe2+ 37. Bxe2 Rc5 38. Bd3 Nd5 39. bxa3 Nf4 40. Kd2 Rh2+ 41. Kd1 Nxd3 42. cxd3 Rcc2 43. Re4 Rxa2 0-1

[Event "45th FIDE Womens Olympiad 2024"]
[Site "Budapest"]
[Date "2024.09.12"]
[Round "2.69"]
[White "Dornbusch, Tatiana"]
[Black "Munkhzul, Turmunkh"]
[Result "1-0"]
[ECO "E05"]
[WhiteElo "2212"]
[BlackElo "2256"]
[Annotator "ChessBase"]
[PlyCount "157"]
[EventDate "2024.09.05"]
[EventType "team-tourn"]
[EventCountry "HUN"]
[SourceTitle "playchess.com"]
[Source "ChessBase"]
[SourceQuality "1"]
[WhiteTeam "Monaco"]
[BlackTeam "Mongolia"]
[WhiteTeamCountry "MNC"]
[BlackTeamCountry "MGL"]
[TimeControl "40/5400+30:1800+30"]

1. d4 Nf6 2. Nf3 d5 3. c4 e6 4. g3 Be7 5. Bg2 O-O 6. O-O dxc4 7. Qc2 a6 8. Qxc4 b5 9. Qc2 Bb7 10. Bf4 Nc6 11. Nbd2 Nd5 12. Nb3 Nxf4 13. gxf4 Nb4 14. Qc3 Nd5 15. Qc1 Rc8 16. e3 Nf6 17. Rd1 Bd5 18. Qc3 Bd6 19. Rac1 Qe7 20. Ne5 Bxg2 21. Kxg2 Nd5 22. Qc2 f6 23. Nc6 Qe8 24. Qe4 f5 25. Qf3 Rf6 26. Rg1 Rh6 27. Kf1 Nf6 28. h3 Ne4 29. Ke2 Qf7 30. Nd2 Nf6 31. Rg5 Kh8 32. Rcg1 Rg8 33. Qg2 Nd5 34. Qf3 Qd7 35. Rc1 Rf6 36. Rgg1 Rff8 37. a3 a5 38. Nxa5 b4 39. axb4 Qb5+ 40. Nac4 Bxb4 41. Rgd1 Nb6 42. b3 Nd5 43. Nb1 Ra8 44. h4 Nf6 45. Rc2 Bd6 46. Nbd2 Ng4 47. Qh1 Rgd8 48. Ra1 Rxa1 49. Qxa1 Qd5 50. f3 Nf6 51. Qa5 Qxa5 52. Nxa5 Rb8 53. Nc6 Ra8 54. Ne5 Kg8 55. Ndc4 Bf8 56. Nd2 Bd6 57. Nd3 Nd5 58. Nc4 Be7 59. e4 Nf6 60. Nd2 Ne8 61. h5 Ra1 62. Rc6 fxe4 63. fxe4 Rh1 64. Rxe6 Kf7 65. d5 Nf6 66. Ne5+ Kf8 67. Nc6 Bd6 68. h6 Bxf4 69. hxg7+ Kxg7 70. Nf3 h5 71. Ncd4 Kf7 72. Nf5 Ng4 73. Re7+ Kf6 74. Re6+ Kf7 75. e5 h4 76. Re7+ Kf8 77. e6 Ne5 78. Rxc7 Kg8 79. Rg7+ 1-0

[Event "45th FIDE Womens Olympiad 2024"]
[Site "Budapest"]
[Date "2024.09.12"]
[Round "2.70"]
[White "Nomin-Erdene, Davaademberel"]
[Black "Zvereva, Marija"]
[Result "1-0"]
[ECO "A08"]
[WhiteElo "2319"]
[BlackElo "2035"]
[Annotator "ChessBase"]
[PlyCount "81"]
[EventDate "2024.09.05"]
[EventType "team-tourn"]
[EventCountry "HUN"]
[SourceTitle "playchess.com"]
[Source "ChessBase"]
[SourceQuality "1"]
[WhiteTeam "Mongolia"]
[BlackTeam "Monaco"]
[WhiteTeamCountry "MGL"]
[BlackTeamCountry "MNC"]
[TimeControl "40/5400+30:1800+30"]

1. Nf3 c5 2. g3 Nc6 3. Bg2 Nf6 4. O-O g6 5. d3 Bg7 6. Nbd2 O-O 7. e4 d5 8. c3 e5 9. exd5 Nxd5 10. Re1 h6 11. Nc4 Re8 12. a4 b6 13. Qb3 Be6 14. Nfd2 f5 15. a5 Nxa5 16. Nxa5 Ne3 17. Nac4 Nxg2 18. Kxg2 Qxd3 19. Kg1 Qd7 20. Qc2 Bd5 21. Ne3 Bb7 22. f3 Kh7 23. Re2 b5 24. Rf2 f4 25. Nef1 fxg3 26. Nxg3 e4 27. Ndxe4 Qc6 28. Be3 Re5 29. Rd1 Rf8 30. Rd6 Qc7 31. Qd2 Rf7 32. Qd1 Bf8 33. Rd8 Re6 34. Rfd2 Bc8 35. R8d5 Rc6 36. Nd6 Bxd6 37. Rxd6 Rxd6 38. Rxd6 Bb7 39. Qd3 Rg7 40. Nh5 c4 41. Nf6+ 1-0

[Event "45th FIDE Womens Olympiad 2024"]
[Site "Budapest"]
[Date "2024.09.12"]
[Round "2.71"]
[White "Berezovsky, Fiorina"]
[Black "Khuslen, Erdenebayar"]
[Result "0-1"]
[ECO "D00"]
[WhiteElo "1976"]
[BlackElo "2229"]
[Annotator "ChessBase"]
[PlyCount "88"]
[EventDate "2024.09.05"]
[EventType "team-tourn"]
[EventCountry "HUN"]
[SourceTitle "playchess.com"]
[Source "ChessBase"]
[SourceQuality "1"]
[WhiteTeam "Monaco"]
[BlackTeam "Mongolia"]
[WhiteTeamCountry "MNC"]
[BlackTeamCountry "MGL"]
[TimeControl "40/5400+30:1800+30"]

1. d4 Nf6 2. Nc3 d5 3. Bf4 g6 4. e3 Bg7 5. h4 h5 6. Nf3 O-O 7. Be2 c5 8. Nb5 Nc6 9. Nc7 Rb8 10. Nb5 Ra8 11. Nc7 e5 12. dxe5 Qxc7 13. exf6 Qa5+ 14. c3 Bxf6 15. O-O Qd8 16. Bg5 Be6 17. Qc2 Bxg5 18. Nxg5 Qf6 19. Rad1 Rad8 20. f4 Bf5 21. Bd3 Ne7 22. g3 Bxd3 23. Rxd3 Nf5 24. e4 dxe4 25. Nxe4 Qc6 26. Rxd8 Rxd8 27. Re1 Kg7 28. Qf2 b6 29. Re2 Rd1+ 30. Re1 Rd3 31. Qg2 c4 32. b3 Ne3 33. Qh1 Nc2 34. Rf1 Re3 35. Ng5 Qc5 36. b4 Qf5 37. Qg2 Qd3 38. Rf3 Qxc3 39. Rxe3 Nxe3 40. Qe2 Nf5 41. Ne4 Qxb4 42. Qd1 c3 43. Qc2 Nd4 44. Qf2 Qb1+ 0-1

[Event "45th FIDE Womens Olympiad 2024"]
[Site "Budapest"]
[Date "2024.09.12"]
[Round "2.72"]
[White "Mungunzul, Bat-Erdene"]
[Black "Berezovska, Svetlana"]
[Result "1-0"]
[ECO "D60"]
[WhiteElo "2224"]
[BlackElo "1869"]
[Annotator "ChessBase"]
[PlyCount "79"]
[EventDate "2024.09.05"]
[EventType "team-tourn"]
[EventCountry "HUN"]
[SourceTitle "playchess.com"]
[Source "ChessBase"]
[SourceQuality "1"]
[WhiteTeam "Mongolia"]
[BlackTeam "Monaco"]
[WhiteTeamCountry "MGL"]
[BlackTeamCountry "MNC"]
[TimeControl "40/5400+30:1800+30"]

1. d4 Nf6 2. c4 e6 3. Nf3 d5 4. Nc3 Be7 5. Bg5 O-O 6. e3 Nbd7 7. Bd3 c5 8. O-O dxc4 9. Bxc4 h6 10. Bh4 a6 11. a4 Nb6 12. Bb3 cxd4 13. exd4 Bd7 14. Re1 Bc6 15. Ne5 Rc8 16. Qd3 Bd5 17. Bc2 g5 18. Ng4 Kg7 19. Nxf6 Kxf6 20. Bg3 Bd6 21. Be5+ Ke7 22. a5 Bxe5 23. Rxe5 Bc4 24. Qf3 Bd5 25. Qh3 Rxc3 26. bxc3 Nc4 27. Ree1 Rh8 28. Be4 Bxe4 29. Rxe4 Nxa5 30. f4 Nc4 31. f5 Nd6 32. Re2 Qc7 33. fxe6 f5 34. Re5 Qb6 35. Rf1 Qc6 36. Rfe1 b5 37. Rc5 Qb6 38. Qh5 a5 39. Qg6 Re8 40. Qg7+ 1-0

[Event "45th FIDE Womens Olympiad 2024"]
[Site "Budapest"]
[Date "2024.09.12"]
[Round "2.73"]
[White "Injac, Teodora"]
[Black "Arakhamia-Grant, Ketevan"]
[Result "0-1"]
[ECO "E68"]
[WhiteElo "2425"]
[BlackElo "2263"]
[Annotator "TA"]
[PlyCount "74"]
[EventDate "2024.09.05"]
[EventType "team-tourn"]
[EventCountry "HUN"]
[SourceTitle "playchess.com"]
[Source "ChessBase"]
[SourceQuality "1"]
[WhiteTeam "Serbia"]
[BlackTeam "Scotland"]
[WhiteTeamCountry "SRB"]
[BlackTeamCountry "SCO"]
[TimeControl "40/5400+30:1800+30"]

{[%evp 20,74,60,32,49,51,61,69,81,79,85,72,117,80,67,85,93,41,59,59,66,14,81,79,71,79,68,66,72,75,120,45,65,-11,-14,-1,-1,-23,-24,-23,-6,-13,0,0,0,0,0,-67,-64,-70,0,-5222,-5222,-5210,-5125,-29989,-5225]} 1. c4 Nf6 2. Nc3 g6 3. g3 Bg7 4. Bg2 O-O 5. d4 d6 6. Nf3 Nbd7 7. O-O e5 8. e4 exd4 9. Nxd4 Re8 10. h3 a6 11. Bg5 h6 12. Be3 Nc5 13. Qc2 Bd7 {[%cal Ob7b5] White is slightly better.} 14. Rad1 Qc8 15. Kh2 Re5 {[%cal Od7h3]} 16. f3 b5 17. b4 Nb7 18. Nde2 (18. Nd5 $16) 18... bxc4 19. Bd4 Re8 20. Nf4 ({White should try} 20. f4 $14) 20... c5 (20... Qd8 $1 $11 {keeps the balance.}) 21. bxc5 $16 Nxc5 22. Ncd5 Nxd5 23. Nxd5 {Strongly threatening Bxg7.} Bxd4 24. Rxd4 Qd8 {[#] Repels Nf6+} 25. Rb1 (25. Qxc4 Bb5 26. Qc3 Bxf1 27. Bxf1 h5 $15) (25. f4 $1 $16) 25... Be6 26. Qd2 ({Better is} 26. Qxc4 $14 h5 27. h4) 26... Bxd5 $11 27. Rxd5 Nd3 $36 {[%mdl 2048] Repels Rc1. Black has some pressure.} 28. Qxh6 Rb8 29. Rxb8 Qxb8 30. Qd2 (30. f4 {feels hotter.} Ne1 31. f5 Qb2 32. Rd2) 30... Rc8 31. Qc3 $1 Qb1 {...Qc1 is the strong threat.} 32. Rxd6 Qc1 33. Qf6 (33. Qa5 $11) 33... Qb2 $1 $15 {aiming for ...Qxf6.} 34. Qg5 {[%cal Od6g6]} (34. Rxa6 $2 Qxf6 35. Rxf6 c3 $19) 34... Ne1 {Black is much more active.} (34... Qxa2 35. e5 Ne1 36. Rd8+ Rxd8 37. Qxd8+ Kh7 38. Qh4+ Kg8 39. Qd8+ Kg7 40. Qf6+ Kg8 41. Qd8+ $11) ({Black should play} 34... Kh7 $1 $15 35. Rd7 (35. Rxa6 Ne1 36. Qh4+ Kg8) 35... Ne5) 35. Rd2 $2 {[%mdl 8192] [#]} (35. Rxg6+ $11 fxg6 36. Qxg6+ Kf8 37. Qd6+ Kf7 38. Qd7+ Kg6 39. Qf5+ Kg7 40. Qd7+ Kg6 41. Qe6+ Kh7 42. Qd7+ Kh6 43. Qd6+ Kh7 (43... Kh5 44. g4+ Kg5 45. f4+ Kh4 46. Qh6#) 44. Qd7+ Kh6 45. Qe6+ Kg7 46. Qd7+ Kf6 47. e5+ Qxe5 (47... Kxe5 $2 48. Qg7+ Kd6 49. Qxb2 $18) (47... Kg6 48. Qe6+ Kh7 49. Qf5+ Kg8 50. Qg6+ Kf8 51. Qf5+ Kg7 52. Qg4+ Kh6 53. Qh4+ Kg7 54. Qg5+ Kh8 55. Qh4+ Kg8 56. Qg5+ Kf8 57. Qf5+ Ke8 58. Qxc8+ $11) 48. Qxc8) 35... c3 $1 $19 36. Rxb2 cxb2 37. Qg4 Rb8 {Weighted Error Value: White=0.56/Black=0.12 (very precise) .  Loses game:     	White=1     	---        Mistake:       	White=5     	Black=2      Inaccurate:     	White=1     	Black=1      OK:         	White=11    	Black=11     Best:        	White=1     	Black=1      Strong:       	White=1     	Black=1} (37... b1=R $2 {is the wrong capture.} 38. Qxc8+ Kg7 39. Qc3+ (39. Qxa6 Rb2 $18) 39... Kg8 40. Bf1 $18 (40. Qc8+ Kh7 $18)) (37... Rc2 $142 38. h4 Nxg2 (38... b1=B $2 39. Kg1 $18) (38... b1=Q 39. Kh3 Nxg2 40. Qg5 Qh1+ 41. Kg4 f5+ 42. Qxf5 gxf5+ 43. exf5 Nxh4 44. Kg5 Qxf3 45. Kxh4 Qxf5 46. g4 Rh2+ 47. Kg3 Qf2#) 39. Kh3 b1=Q (39... b1=B 40. h5 $16) 40. Qg5 Qh1+ (40... Qxa2 $2 41. g4 $19) 41. Kg4 f5+ (41... Rxa2 $2 42. Qd8+ Kh7 43. Qd7 $19) 42. exf5 Rc4+ (42... Rxa2 43. Qxg6+ Kf8 44. Qd6+ Kg8 45. Qe6+ Kf8 46. Qxa2 $11) 43. Qf4 Rxf4+ (43... Nxf4 44. Kg5 Qxf3 45. g4 Kg7 46. f6+ Kh7 47. h5 Nh3+ 48. Kh4 Rxg4#) 44. Kg5 Rxf5+ 45. Kxg6 Nxh4+ (45... Rxf3 46. Kg5 Qb1 47. Kh5 Rf6 48. Kg5 Qg6#) (45... Qh3 46. a4 Nxh4+ 47. gxh4 Qxf3 48. Kh6 Qh5#) 46. gxh4 Qxf3 47. Kh6 Qh5#) 0-1

[Event "45th FIDE Womens Olympiad 2024"]
[Site "Budapest"]
[Date "2024.09.12"]
[Round "2.74"]
[White "Roy, Ali"]
[Black "Velikic, Adela"]
[Result "0-1"]
[ECO "C00"]
[WhiteElo "1961"]
[BlackElo "2260"]
[Annotator "ChessBase"]
[PlyCount "64"]
[EventDate "2024.09.05"]
[EventType "team-tourn"]
[EventCountry "HUN"]
[SourceTitle "playchess.com"]
[Source "ChessBase"]
[SourceQuality "1"]
[WhiteTeam "Scotland"]
[BlackTeam "Serbia"]
[WhiteTeamCountry "SCO"]
[BlackTeamCountry "SRB"]
[TimeControl "40/5400+30:1800+30"]

1. Nf3 d5 2. g3 Nf6 3. Bg2 c5 4. O-O e6 5. d3 Nc6 6. Nbd2 Be7 7. e4 O-O 8. e5 Nd7 9. Re1 b5 10. Qe2 a5 11. Nf1 a4 12. h4 a3 13. bxa3 Ra4 14. N1h2 Ba6 15. Bf4 Re8 16. h5 h6 17. Ng4 Bf8 18. Bf1 Rxa3 19. Qd2 Kh7 20. Kg2 Qa5 21. Qd1 Ra4 22. d4 Nxd4 23. Bd3+ Kh8 24. Qc1 Nxf3 25. Kxf3 c4 26. Bxh6 cxd3 27. Bxg7+ Bxg7 28. cxd3 Rc8 29. Qg5 Qd8 30. Nf6 Nxe5+ 31. Qxe5 Qxf6+ 32. Qxf6 Bxf6 0-1

[Event "45th FIDE Womens Olympiad 2024"]
[Site "Budapest"]
[Date "2024.09.12"]
[Round "2.75"]
[White "Mandura, Tijana"]
[Black "Cooke, Suzie G."]
[Result "1/2-1/2"]
[ECO "C02"]
[WhiteElo "2207"]
[BlackElo "1941"]
[Annotator "ChessBase"]
[PlyCount "67"]
[EventDate "2024.09.05"]
[EventType "team-tourn"]
[EventCountry "HUN"]
[SourceTitle "playchess.com"]
[Source "ChessBase"]
[SourceQuality "1"]
[WhiteTeam "Serbia"]
[BlackTeam "Scotland"]
[WhiteTeamCountry "SRB"]
[BlackTeamCountry "SCO"]
[TimeControl "40/5400+30:1800+30"]

1. e4 e6 2. d4 d5 3. e5 c5 4. c3 Nc6 5. Nf3 Bd7 6. Be2 cxd4 7. cxd4 Nge7 8. Na3 Nf5 9. Nc2 Qb6 10. h4 Nb4 11. Nxb4 Bxb4+ 12. Kf1 h5 13. a4 a5 14. g3 Rc8 15. Kg2 Be7 16. Bd2 O-O 17. Bd3 g6 18. Bc3 Kg7 19. Qd2 Bb4 20. Bxf5 exf5 21. Rhe1 Rfe8 22. Ng5 Rc4 23. Nh3 Bxc3 24. bxc3 Qc6 25. Nf4 Rxc3 26. Rac1 Rc8 27. Nxh5+ gxh5 28. Rxc3 Qxc3 29. Qg5+ Kf8 30. Qh6+ Kg8 31. Qg5+ Kf8 32. Qh6+ Kg8 33. Qg5+ Kf8 34. Qh6+ 1/2-1/2

[Event "45th FIDE Womens Olympiad 2024"]
[Site "Budapest"]
[Date "2024.09.12"]
[Round "2.76"]
[White "Giulian, Rosemary A"]
[Black "Eric, Jovana"]
[Result "0-1"]
[ECO "B22"]
[WhiteElo "1922"]
[BlackElo "2162"]
[Annotator "ChessBase"]
[PlyCount "120"]
[EventDate "2024.09.05"]
[EventType "team-tourn"]
[EventCountry "HUN"]
[SourceTitle "playchess.com"]
[Source "ChessBase"]
[SourceQuality "1"]
[WhiteTeam "Scotland"]
[BlackTeam "Serbia"]
[WhiteTeamCountry "SCO"]
[BlackTeamCountry "SRB"]
[TimeControl "40/5400+30:1800+30"]

1. e4 c5 2. c3 Nf6 3. e5 Nd5 4. Nf3 d6 5. Bb5+ Bd7 6. Bc4 e6 7. d4 cxd4 8. cxd4 Nc6 9. O-O Nb6 10. Bb3 dxe5 11. dxe5 Be7 12. Nc3 O-O 13. Qe2 Nb4 14. Bf4 N4d5 15. Nxd5 Nxd5 16. Bg3 Qb6 17. Rfd1 Bb5 18. Qe4 Bc6 19. Qg4 Rad8 20. Nd4 Kh8 21. Nxc6 Qxc6 22. Rac1 Qb6 23. Bh4 Bxh4 24. Qxh4 h6 25. h3 Nb4 26. Qe4 Kg8 27. Qe2 Nc6 28. Rc3 Rxd1+ 29. Bxd1 Qd4 30. Re3 Rd8 31. Bb3 Qd2 32. Ba4 Qc1+ 33. Kh2 Nd4 34. Qe1 Qxb2 35. Bb3 Nf5 36. Re2 Qd4 37. Bc2 Ne7 38. Qb1 Qf4+ 39. g3 Qf3 40. Qe1 Qd5 41. Qb4 Nc6 42. Qb2 Nd4 43. Be4 Qa5 44. Re3 b6 45. Bb1 g6 46. Qc1 Qd5 47. Qc7 Rd7 48. Qc8+ Kg7 49. g4 Nb5 50. a4 Rc7 51. Qb8 Rc1 52. Be4 Qd1 53. Rg3 Qe1 54. Qd8 Qxf2+ 55. Rg2 Qf4+ 56. Rg3 Qxe4 57. Qf6+ Kg8 58. Rf3 Rc2+ 59. Kg1 Qe1+ 60. Rf1 Qg3+ 0-1